bitfinex-derivatives/quotes_BTCF0:USTF0_20240917
["timestamp","ask_amount","ask_price","bid_price","bid_amount"]
[1726547690676,0.100198,58273.0,58272.0,0.45770963]
[1726547690883,0.100198,58273.0,58272.0,0.4476]
[1726547692168,0.100198,58273.0,58272.0,0.0868]
[1726547692368,0.100198,58273.0,58272.0,0.3618]
[1726547693377,0.11015288,58273.0,58272.0,0.3618]
[1726547694261,0.100198,58273.0,58272.0,0.4476]
[1726547696871,0.100198,58273.0,58272.0,0.0868]
[1726547698773,0.14565412,58273.0,58272.0,0.0868]
[1726547703579,0.100198,58273.0,58272.0,0.29812147]
[1726547706088,0.096198,58273.0,58272.0,0.29712147]
[1726547706290,0.091198,58273.0,58272.0,0.29712147]
[1726547708182,0.091198,58273.0,58272.0,0.29712919]
[1726547710586,0.13661372,58273.0,58272.0,0.0858]
[1726547718587,0.091198,58273.0,58272.0,0.29710659]
[1726547720094,0.091198,58273.0,58272.0,0.21130659]
[1726547721089,0.091198,58273.0,58272.0,0.10919773]
[1726547725394,0.091198,58273.0,58272.0,0.19499773]
[1726547725599,0.091198,58273.0,58272.0,0.10919773]
[1726547727397,0.085801,58271.0,58270.0,0.36377403]
[1726547727592,0.085801,58271.0,58270.0,0.60302043]
[1726547727797,0.086201,58271.0,58270.0,0.60302043]
[1726547728893,0.087201,58271.0,58270.0,0.60302043]
[1726547730598,0.087201,58271.0,58270.0,0.68882343]
[1726547730802,0.0014,58271.0,58270.0,0.78882343]
[1726547733600,0.04675601,58271.0,58270.0,0.54957703]
[1726547734595,0.13255701,58271.0,58270.0,0.54957703]
[1726547736197,0.13255701,58271.0,58270.0,0.44957703]
[1726547736993,0.1325646,58271.0,58270.0,0.447003]
[1726547739698,0.087201,58271.0,58270.0,0.447003]
[1726547740694,0.087201,58271.0,58270.0,0.65873505]
[1726547741098,0.087201,58271.0,58270.0,0.29793505]
[1726547741503,0.087201,58271.0,58270.0,0.65873505]
[1726547741705,0.087201,58271.0,58270.0,0.54945889]
[1726547741910,0.087201,58271.0,58270.0,0.65873006]
[1726547747208,0.087201,58271.0,58270.0,0.29793006]
[1726547747408,0.087201,58271.0,58270.0,0.65873006]
[1726547748717,0.1324314,58271.0,58270.0,0.447003]
[1726547751198,0.1324314,58271.0,58270.0,0.547003]
[1726547751404,0.0466304,58271.0,58270.0,0.547003]
[1726547751609,0.0014,58271.0,58270.0,0.547003]
[1726547752500,0.04668752,58271.0,58270.0,0.547003]
[1726547752707,0.0014,58271.0,58270.0,0.547003]
[1726547753302,0.0014,58271.0,58270.0,0.600003]
[1726547755614,0.09608085,58276.0,58274.0,0.085797]
[1726547755916,0.09608085,58276.0,58275.0,0.19536236]
[1726547756115,0.0004,58277.0,58276.0,0.085794]
[1726547756310,0.0004,58277.0,58276.0,0.19528239]
[1726547757112,0.085791,58278.0,58276.0,0.19528239]
[1726547757315,0.085791,58278.0,58277.0,0.10948839]
[1726547759416,0.102791,58278.0,58277.0,0.11048839]
[1726547759624,0.188583,58278.0,58277.0,0.08671372]
[1726547759923,0.188583,58278.0,58277.0,0.0014]
[1726547760122,0.188583,58278.0,58277.0,0.06966201]
[1726547762930,0.238283,58278.0,58277.0,0.06966201]
[1726547763714,0.238283,58278.0,58277.0,0.0014]
[1726547770418,0.238283,58278.0,58273.0,0.05376797]
[1726547770419,1.18146,58278.0,58275.0,0.05119394]
[1726547770621,0.085797,58274.0,58273.0,0.00257403]
[1726547770826,0.085803,58270.0,58263.0,0.3654]
[1726547771022,0.085803,58270.0,58260.0,0.004]
[1726547771023,0.085816,58261.0,58260.0,0.004]
[1726547771222,0.08582,58258.0,58257.0,0.3608]
[1726547771523,0.08582,58258.0,58255.0,0.085824]
[1726547771524,0.085823,58256.0,58255.0,0.085824]
[1726547771723,0.086223,58256.0,58255.0,0.085824]
[1726547772328,0.085826,58254.0,58253.0,0.00257437]
[1726547772533,0.186226,58254.0,58253.0,0.00257437]
[1726547773029,0.173226,58254.0,58253.0,0.00257437]
[1726547773332,0.171226,58254.0,58253.0,0.00257437]
[1726547773924,0.27510701,58254.0,58253.0,0.00457437]
[1726547774427,0.172226,58254.0,58253.0,0.00457437]
[1726547774825,0.27610701,58254.0,58253.0,0.00557437]
[1726547775527,0.27610701,58254.0,58246.0,0.004]
[1726547775528,0.085837,58247.0,58246.0,0.004]
[1726547775827,0.085846,58241.0,58239.0,0.3608]
[1726547776025,0.186247,58240.0,58239.0,0.3608]
[1726547776219,0.185247,58240.0,58239.0,0.3608]
[1726547776426,0.185247,58240.0,58236.0,0.00257556]
[1726547776427,0.085851,58237.0,58236.0,0.00257556]
[1726547776633,0.185851,58237.0,58236.0,0.00257556]
[1726547777024,0.186251,58237.0,58236.0,0.00257556]
[1726547778933,0.188251,58237.0,58236.0,0.00257556]
[1726547782528,0.088251,58237.0,58236.0,0.00257556]
[1726547784236,0.088251,58237.0,58236.0,0.08842856]
[1726547785134,0.0024,58237.0,58236.0,0.08842856]
[1726547785536,0.0024,58237.0,58236.0,0.14082856]
[1726547785728,0.04227296,58239.0,58237.0,0.085851]
[1726547786037,0.085847,58240.0,58238.0,0.08625]
[1726547786229,0.085847,58240.0,58239.0,0.0505]
[1726547787334,0.1,58242.0,58241.0,0.085845]
[1726547787540,0.00088,58244.0,58243.0,0.085842]
[1726547787740,0.004,58247.0,58245.0,0.085839]
[1726547788036,0.085835,58248.0,58246.0,0.086237]
[1726547788235,0.004,58250.0,58247.0,0.0004]
[1726547788421,0.00096001,58251.0,58250.0,0.085832]
[1726547788629,0.004,58254.0,58250.0,0.2013]
[1726547788838,0.36168,58260.0,58250.0,0.2009]
[1726547788839,0.004,58257.0,58250.0,0.2009]
[1726547789138,0.085824,58256.0,58252.0,0.085828]
[1726547789329,0.085824,58256.0,58250.0,0.2009]
[1726547789530,0.001,58251.0,58250.0,0.286732]
[1726547789732,0.0014,58251.0,58250.0,0.286732]
[1726547789933,0.004,58257.0,58256.0,0.085823]
[1726547790134,0.3608,58260.0,58258.0,0.08582]
[1726547790939,0.4608,58260.0,58258.0,0.08582]
[1726547791642,0.546618,58260.0,58258.0,0.08582]
[1726547792143,0.546618,58260.0,58256.0,0.0004]
[1726547792144,0.606618,58260.0,58256.0,0.0004]
[1726547792440,0.606618,58260.0,58258.0,0.002]
[1726547792441,0.607618,58260.0,58258.0,0.002]
[1726547792943,0.607618,58260.0,58258.0,0.003]
[1726547792944,0.085819,58259.0,58258.0,0.003]
[1726547793533,0.085819,58259.0,58258.0,0.004]
[1726547795040,0.085819,58259.0,58258.0,0.001]
[1726547795238,0.085819,58259.0,58258.0,0.003]
[1726547795634,0.181591,58259.0,58258.0,0.001]
[1726547796133,0.084822,58257.0,58256.0,0.0004]
[1726547796328,0.085222,58257.0,58256.0,0.0004]
[1726547797636,0.086222,58257.0,58256.0,0.0004]
[1726547798534,0.087222,58257.0,58256.0,0.0004]
[1726547799047,0.086222,58257.0,58256.0,0.0004]
[1726547799233,0.085222,58257.0,58256.0,0.0004]
[1726547799544,0.086222,58257.0,58256.0,0.0004]
[1726547800539,0.086222,58257.0,58256.0,0.05127416]
[1726547800936,0.086222,58257.0,58256.0,0.0004]
[1726547802339,0.085222,58257.0,58256.0,0.0004]
[1726547802745,0.085222,58257.0,58256.0,0.0024]
[1726547806035,0.0004,58257.0,58256.0,0.088223]
[1726547807942,0.0004,58257.0,58256.0,0.13909716]
[1726547808452,0.086222,58257.0,58256.0,0.13909716]
[1726547811357,0.086222,58257.0,58256.0,0.088223]
[1726547811947,0.086222,58257.0,58256.0,0.13925323]
[1726547812447,0.086222,58257.0,58256.0,0.088223]
[1726547814452,0.086222,58257.0,58256.0,0.15648501]
[1726547814951,0.0004,58257.0,58256.0,0.15648501]
[1726547815254,0.0004,58257.0,58256.0,0.088223]
[1726547816447,0.0004,58257.0,58256.0,0.28262129]
[1726547816650,0.086222,58257.0,58256.0,0.28262129]
[1726547817457,0.086222,58257.0,58256.0,0.19730757]
[1726547818450,0.086222,58257.0,58256.0,0.29971611]
[1726547819652,0.086222,58257.0,58256.0,0.29987968]
[1726547820858,0.086222,58257.0,58256.0,0.19747114]
[1726547821261,0.086222,58257.0,58256.0,0.19747807]
[1726547823161,0.086222,58257.0,58256.0,0.088223]
[1726547823867,0.0004,58257.0,58256.0,0.088223]
[1726547827160,0.04568773,58257.0,58256.0,0.088223]
[1726547827354,0.13150973,58257.0,58256.0,0.088223]
[1726547828261,0.04568773,58257.0,58256.0,0.088223]
[1726547828755,0.1033793,58257.0,58256.0,0.188223]
[1726547829155,0.0004,58257.0,58256.0,0.188223]
[1726547830460,0.0004,58257.0,58256.0,0.088223]
[1726547830765,0.0004,58257.0,58256.0,0.188223]
[1726547831064,0.089813,58263.0,58261.0,0.085815]
[1726547831256,0.089813,58263.0,58262.0,0.10955067]
[1726547831257,0.085813,58263.0,58262.0,0.10955067]
[1726547832260,0.089813,58263.0,58262.0,0.10955067]
[1726547832463,0.093813,58263.0,58262.0,0.10955067]
[1726547832854,0.089813,58263.0,58262.0,0.10955067]
[1726547833053,0.094813,58263.0,58262.0,0.10955067]
[1726547834667,0.094813,58263.0,58262.0,0.10950165]
[1726547835051,0.094813,58263.0,58262.0,0.19480881]
[1726547835464,0.094813,58263.0,58262.0,0.10950165]
[1726547836263,0.094813,58263.0,58262.0,0.19480966]
[1726547837056,0.254813,58263.0,58262.0,0.19480966]
[1726547837257,0.254813,58263.0,58262.0,0.08570801]
[1726547837464,0.254813,58263.0,58262.0,0.0004]
[1726547837966,0.30019024,58263.0,58262.0,0.0004]
[1726547838368,0.38600324,58263.0,58262.0,0.0004]
[1726547838661,0.50611068,58263.0,58262.0,0.0004]
[1726547838868,0.43848796,58263.0,58262.0,0.0004]
[1726547839367,0.43826794,58263.0,58262.0,0.0004]
[1726547844168,0.43832282,58263.0,58262.0,0.0004]
[1726547846171,0.340626,58263.0,58262.0,0.0004]
[1726547847766,0.426439,58263.0,58262.0,0.0004]
[1726547849971,0.787239,58263.0,58262.0,0.0004]
[1726547853174,0.83224751,58263.0,58262.0,0.0004]
[1726547853870,0.77224751,58263.0,58262.0,0.0004]
[1726547857974,0.96176926,58263.0,58262.0,0.0004]
[1726547858678,0.96177801,58263.0,58262.0,0.0004]
[1726547859177,0.82451237,58263.0,58262.0,0.0004]
[1726547861284,0.727239,58263.0,58262.0,0.0004]
[1726547867183,0.727239,58263.0,58262.0,0.05159909]
[1726547868086,0.82474409,58263.0,58262.0,0.0004]
[1726547868986,0.96205359,58263.0,58262.0,0.0004]
[1726547870684,0.82474409,58263.0,58262.0,0.0004]
[1726547874287,0.96205359,58263.0,58262.0,0.0004]
[1726547876190,0.727239,58263.0,58262.0,0.0004]
[1726547877290,0.727239,58263.0,58262.0,0.06868173]
[1726547877687,0.180626,58263.0,58262.0,0.06868173]
[1726547877891,0.094813,58263.0,58262.0,0.08570801]
[1726547878189,0.094813,58263.0,58262.0,0.29782852]
[1726547878190,0.009,58263.0,58262.0,0.29782852]
[1726547879083,0.009,58263.0,58262.0,0.19544927]
[1726547879886,0.009,58263.0,58262.0,0.19522501]
[1726547882988,0.094813,58263.0,58262.0,0.19522501]
[1726547883292,0.094813,58263.0,58262.0,0.086214]
[1726547887785,0.094813,58263.0,58262.0,0.447014]
[1726547888280,0.094813,58263.0,58262.0,0.15442919]
[1726547888885,0.094813,58263.0,58262.0,0.086214]
[1726547890487,0.094813,58263.0,58262.0,0.15442334]
[1726547891090,0.19314817,58263.0,58262.0,0.086214]
[1726547895892,0.19306709,58263.0,58262.0,0.086214]
[1726547898191,0.094813,58263.0,58262.0,0.086214]
[1726547899202,0.094813,58263.0,58262.0,0.17151396]
[1726547900298,0.094813,58263.0,58262.0,0.2805064]
[1726547900702,0.094813,58263.0,58262.0,0.28050498]
[1726547903101,0.094813,58263.0,58262.0,0.19520502]
[1726547906198,0.094813,58263.0,58262.0,0.15450348]
[1726547907204,0.094813,58263.0,58262.0,0.086214]
[1726547913313,0.19332629,58263.0,58262.0,0.086214]
[1726547913516,0.19332629,58263.0,58262.0,0.0004]
[1726547916904,0.14039891,58263.0,58262.0,0.0004]
[1726547918704,0.19330139,58263.0,58262.0,0.0004]
[1726547921206,0.094813,58263.0,58262.0,0.21190283]
[1726547924810,0.094813,58263.0,58262.0,0.29771683]
[1726547928221,0.1932889,58263.0,58262.0,0.086214]
[1726547930012,0.33065818,58263.0,58262.0,0.086214]
[1726547936329,0.094813,58263.0,58262.0,0.29774533]
[1726547939530,0.094813,58263.0,58262.0,0.29774222]
[1726547940028,0.094813,58263.0,58262.0,0.18859325]
[1726547940327,0.094813,58263.0,58262.0,0.19536281]
[1726547942925,0.094813,58263.0,58262.0,0.19535275]
[1726547943424,0.094813,58263.0,58262.0,0.086214]
[1726547943425,0.19331311,58263.0,58262.0,0.086214]
[1726547944429,0.19331311,58263.0,58262.0,0.0004]
[1726547944622,0.33068239,58263.0,58262.0,0.0004]
[1726547945229,0.19331311,58263.0,58262.0,0.0004]
[1726547945419,0.33068239,58263.0,58262.0,0.0004]
[1726547947935,0.33033858,58263.0,58262.0,0.0004]
[1726547948930,0.05442072,58263.0,58262.0,1.147014]
[1726547949237,0.009,58263.0,58262.0,1.061934]
[1726547949444,0.11196039,58263.0,58262.0,1.061934]
[1726547949633,0.009,58263.0,58262.0,1.061934]
[1726547950936,0.009,58263.0,58262.0,1.661934]
[1726547951343,0.004,58269.0,58268.0,0.085806]
[1726547951636,0.085803,58270.0,58268.0,0.55568303]
[1726547951832,0.085803,58270.0,58269.0,0.10907703]
[1726547952431,0.085803,58270.0,58269.0,0.0004]
[1726547952627,0.085803,58270.0,58269.0,0.108999]
[1726547953746,0.085803,58270.0,58269.0,0.194803]
[1726547953938,0.096803,58270.0,58269.0,0.194803]
[1726547954138,0.108803,58270.0,58269.0,0.195803]
[1726547954542,0.108803,58270.0,58269.0,0.20629013]
[1726547955538,0.108803,58270.0,58269.0,0.29151564]
[1726547956148,0.108803,58270.0,58269.0,0.18291664]
[1726547956446,0.108803,58270.0,58269.0,0.17242951]
[1726547956845,0.108803,58270.0,58269.0,0.087204]
[1726547958338,0.20826804,58270.0,58269.0,0.087204]
[1726547960248,0.20826804,58270.0,58269.0,0.0014]
[1726547962052,0.20822974,58270.0,58269.0,0.0014]
[1726547963054,0.25752974,58270.0,58269.0,0.0014]
[1726547965447,0.34333274,58270.0,58269.0,0.0014]
[1726547965654,0.38993274,58270.0,58269.0,0.0006712]
[1726547965951,0.52701654,58270.0,58269.0,0.0006712]
[1726547966348,0.290506,58270.0,58269.0,0.0006712]
[1726547975949,0.290506,58270.0,58269.0,0.06883908]
[1726547976460,0.11995268,58290.0,58281.0,0.085786]
[1726547976660,0.3608,58300.0,58282.0,0.085784]
[1726547976661,0.1,58284.0,58282.0,0.085784]
[1726547976859,0.1,58284.0,58283.0,0.086583]
[1726547977066,0.1,58284.0,58282.0,0.08518849]
[1726547977357,0.1,58284.0,58281.0,0.80870849]
[1726547977562,0.1,58284.0,58282.0,0.08518849]
[1726547977954,0.004,58284.0,58283.0,0.085784]
[1726547978261,0.004,58284.0,58283.0,0.185784]
[1726547978557,7e-05,58292.0,58288.0,0.085776]
[1726547978758,7e-05,58292.0,58291.0,0.06887898]
[1726547979067,7e-05,58292.0,58291.0,0.0008]
[1726547980162,0.00207,58292.0,58291.0,0.05379175]
[1726547981167,0.00207,58292.0,58291.0,0.0028]
[1726547981663,0.04490567,58292.0,58291.0,0.0028]
[1726547981863,0.04490567,58292.0,58291.0,0.188572]
[1726547982173,0.00207,58292.0,58291.0,0.188572]
[1726547982659,0.00207,58292.0,58291.0,0.088572]
[1726547984259,0.00207,58292.0,58291.0,0.188572]
[1726547984460,0.00207,58292.0,58291.0,0.088572]
[1726547986666,0.10207,58292.0,58291.0,0.0028]
[1726547987871,0.20452212,58292.0,58291.0,0.0028]
[1726547988269,0.18784,58292.0,58291.0,0.0028]
[1726547990681,0.19784303,58292.0,58291.0,0.0028]
[1726547997287,0.085779,58286.0,58279.0,0.36596]
[1726547997487,0.0481,58285.0,58284.0,0.004]
[1726547997685,0.0481,58285.0,58279.0,0.004]
[1726547997887,0.0481,58285.0,58278.0,0.3608]
[1726547997888,0.1,58280.0,58278.0,0.3608]
[1726547998187,0.185788,58280.0,58278.0,0.3608]
[1726547998388,0.085776,58289.0,58282.0,0.085784]
[1726547998588,0.0467,58291.0,58279.0,0.1]
[1726547998589,0.1,58287.0,58284.0,0.3608]
[1726547999193,0.00287,58292.0,58286.0,0.4608]
[1726547999498,0.00087,58292.0,58291.0,0.3616]
[1726547999689,0.08664,58292.0,58291.0,0.3616]
[1726548000400,0.09364,58292.0,58291.0,0.3616]
[1726548001395,0.10164,58292.0,58291.0,0.3626]
[1726548001992,0.01587,58292.0,58291.0,0.448372]
[1726548002401,0.00887,58292.0,58291.0,0.448372]
[1726548002600,0.02187,58292.0,58291.0,0.449372]
[1726548003096,0.02187,58292.0,58291.0,0.498572]
[1726548004304,0.02187,58292.0,58291.0,1.613212]
[1726548006402,0.02016497,58292.0,58291.0,1.613212]
[1726548008595,0.02016497,58292.0,58291.0,1.661212]
[1726548008902,0.06321431,58292.0,58291.0,1.661212]
[1726548009902,0.02016497,58292.0,58291.0,1.661212]
[1726548010892,0.02016497,58292.0,58291.0,1.564012]
[1726548011098,0.02016497,58292.0,58291.0,0.449372]
[1726548012209,0.10593497,58292.0,58291.0,0.449372]
[1726548014114,0.19911933,58292.0,58291.0,0.449372]
[1726548015706,0.19911343,58292.0,58291.0,0.449372]
[1726548017599,0.19911343,58292.0,58291.0,0.0028]
[1726548017600,0.34177032,58292.0,58291.0,0.0028]
[1726548017806,0.17155,58289.0,58288.0,0.00257335]
[1726548018009,0.48649237,58289.0,58288.0,0.00257335]
[1726548018198,0.48649237,58289.0,58282.0,0.004]
[1726548018199,1.36474535,58289.0,58282.0,0.004]
[1726548018399,0.085788,58280.0,58279.0,0.3648]
[1726548018701,0.185788,58280.0,58279.0,0.3608]
[1726548019096,0.171584,58277.0,58276.0,0.00257385]
[1726548019307,0.085801,58271.0,58270.0,0.004]
[1726548019603,1.146593,58277.0,58269.0,0.00257427]
[1726548019604,0.085803,58270.0,58269.0,0.00257427]
[1726548019793,0.36168,58277.0,58269.0,0.00257427]
[1726548019794,0.085795,58276.0,58269.0,0.10257427]
[1726548020001,0.085795,58276.0,58275.0,0.0008]
[1726548021208,0.002,58276.0,58275.0,0.0008]
[1726548022297,0.004,58276.0,58275.0,0.0008]
[1726548026810,0.004,58276.0,58275.0,0.06890844]
[1726548028506,0.004,58276.0,58275.0,0.0008]
[1726548028912,0.004,58276.0,58275.0,0.06890844]
[1726548029109,0.004,58276.0,58275.0,0.0008]
[1726548029502,0.089794,58276.0,58275.0,0.0008]
[1726548030919,0.189794,58276.0,58275.0,0.0008]
[1726548035411,0.189794,58276.0,58275.0,0.3616]
[1726548036822,0.189794,58276.0,58275.0,0.0008]
[1726548037011,0.189794,58276.0,58275.0,0.3616]
[1726548038123,0.089794,58276.0,58275.0,0.3616]
[1726548038511,0.189794,58276.0,58275.0,0.3616]
[1726548041811,0.1,58276.0,58275.0,0.19670339]
[1726548042011,0.1,58276.0,58275.0,0.55750339]
[1726548042217,0.185794,58276.0,58275.0,0.55750339]
[1726548042415,0.185794,58276.0,58275.0,0.47236783]
[1726548043320,0.185794,58276.0,58275.0,0.55816283]
[1726548043525,0.085794,58276.0,58275.0,0.55816283]
[1726548044221,0.085794,58276.0,58275.0,0.447395]
[1726548044523,0.085794,58276.0,58275.0,0.55735914]
[1726548045717,0.085794,58276.0,58275.0,0.65952181]
[1726548046415,0.085794,58276.0,58275.0,0.55735914]
[1726548047414,0.085794,58276.0,58275.0,0.68877868]
[1726548048819,0.085794,58276.0,58275.0,0.447395]
[1726548056928,0.085794,58276.0,58275.0,0.68928111]
[1726548058632,0.085794,58276.0,58275.0,0.68920825]
[1726548062521,0.1484,58279.0,58278.0,0.085791]
[1726548062728,0.134189,58279.0,58278.0,0.32800425]
[1726548063624,0.139189,58279.0,58278.0,0.32800425]
[1726548063823,0.139189,58279.0,58278.0,0.29890023]
[1726548064025,0.143189,58279.0,58278.0,0.29890023]
[1726548065738,0.143189,58279.0,58278.0,0.18858204]
[1726548065940,0.143189,58279.0,58278.0,0.29893089]
[1726548069447,0.0574,58279.0,58278.0,0.29893089]
[1726548069633,0.0574,58279.0,58278.0,0.19653985]
[1726548070247,0.0574,58279.0,58278.0,0.20656281]
[1726548070748,0.143189,58279.0,58278.0,0.19653985]
[1726548071933,0.18718908,58279.0,58278.0,0.086191]
[1726548075351,0.28718908,58279.0,58278.0,0.086191]
[1726548079046,0.1831026,58279.0,58278.0,0.32794281]
[1726548083457,0.1831026,58279.0,58278.0,0.24215181]
[1726548085148,0.1831026,58279.0,58278.0,0.32794281]
[1726548086553,0.1831026,58279.0,58278.0,0.32702378]
[1726548087060,0.1831026,58279.0,58278.0,0.086191]
[1726548094060,0.1831026,58279.0,58278.0,0.32706151]
[1726548094657,0.0831026,58279.0,58278.0,0.32706151]
[1726548096062,0.0831026,58279.0,58278.0,0.32715611]
[1726548096869,0.085779,58286.0,58283.0,0.085784]
[1726548097164,0.085779,58286.0,58283.0,0.60216511]
[1726548097363,0.085779,58286.0,58285.0,0.0004]
[1726548097564,0.085779,58286.0,58285.0,0.32714611]
[1726548097765,0.085775,58289.0,58286.0,0.085779]
[1726548097965,0.0008,58292.0,58289.0,0.085773]
[1726548098153,0.0008,58292.0,58288.0,0.10271782]
[1726548098154,0.0008,58292.0,58291.0,0.0004]
[1726548098360,0.0008,58292.0,58291.0,0.10993126]
[1726548098961,0.0008,58292.0,58291.0,0.21224908]
[1726548099269,0.0008,58292.0,58291.0,0.19570326]
[1726548099461,0.0008,58292.0,58291.0,0.29802108]
[1726548100059,0.0138,58292.0,58291.0,0.39902108]
[1726548100270,0.0138,58292.0,58291.0,0.39883702]
[1726548100474,0.0218,58292.0,58291.0,0.29770326]
[1726548100662,0.0218,58292.0,58291.0,0.39983708]
[1726548100866,0.0218,58292.0,58291.0,0.39983685]
[1726548101164,0.0138,58292.0,58291.0,0.29670326]
[1726548101368,0.0218,58292.0,58291.0,0.2998004]
[1726548101664,0.0208,58292.0,58291.0,0.19770326]
[1726548102063,0.0208,58292.0,58291.0,0.087772]
[1726548102265,0.06572301,58292.0,58291.0,0.087772]
[1726548102770,0.06572301,58292.0,58291.0,0.448572]
[1726548107973,0.06572301,58292.0,58291.0,0.087772]
[1726548108275,0.06572301,58292.0,58291.0,0.448572]
[1726548108678,0.06572301,58292.0,58291.0,0.087772]
[1726548108975,0.0208,58292.0,58291.0,0.448572]
[1726548109970,0.0208,58292.0,58291.0,0.51663787]
[1726548117067,0.0208,58292.0,58291.0,0.448572]
[1726548117676,0.0208,58292.0,58291.0,0.087772]
[1726548117871,0.0208,58292.0,58291.0,0.448572]
[1726548124180,0.14068693,58292.0,58291.0,0.448572]
[1726548124484,0.06581819,58292.0,58291.0,0.448572]
[1726548125379,0.11813714,58292.0,58291.0,0.448572]
[1726548126180,0.11818186,58292.0,58291.0,0.448572]
[1726548126386,0.15781363,58292.0,58291.0,0.448572]
[1726548126588,0.25519549,58292.0,58291.0,0.448572]
[1726548126986,0.25519549,58292.0,58291.0,0.087772]
[1726548127187,0.06586235,58292.0,58291.0,0.448572]
[1726548127383,0.18589674,58292.0,58291.0,0.448572]
[1726548127780,0.18589674,58292.0,58291.0,0.087772]
[1726548127988,0.18594609,58292.0,58291.0,0.448572]
[1726548130187,0.18594609,58292.0,58291.0,0.087772]
[1726548130388,0.18594609,58292.0,58291.0,0.448572]
[1726548132093,0.0208,58292.0,58291.0,0.55780875]
[1726548132593,0.0208,58292.0,58291.0,0.19700875]
[1726548132793,0.0208,58292.0,58291.0,0.55780954]
[1726548137595,0.0208,58292.0,58291.0,0.55780549]
[1726548138992,0.0208,58292.0,58291.0,0.660099]
[1726548139297,0.14083439,58292.0,58291.0,0.448572]
[1726548139597,0.18599561,58292.0,58291.0,0.448572]
[1726548142496,0.18598747,58292.0,58291.0,0.448572]
[1726548143000,0.18598747,58292.0,58291.0,0.087772]
[1726548143395,0.18598747,58292.0,58291.0,0.448572]
[1726548144501,0.18598747,58292.0,58291.0,0.548572]
[1726548144993,0.18598747,58292.0,58291.0,0.187772]
[1726548145192,0.18598747,58292.0,58291.0,0.548572]
[1726548146397,0.18598747,58292.0,58291.0,0.187772]
[1726548146701,0.18598747,58292.0,58291.0,0.548572]
[1726548147201,0.0208,58292.0,58291.0,0.76011499]
[1726548147500,0.0208,58292.0,58291.0,0.76011498]
[1726548148001,0.0208,58292.0,58291.0,0.65782147]
[1726548148202,0.0208,58292.0,58291.0,0.76013593]
[1726548148395,0.0208,58292.0,58291.0,0.39933593]
[1726548148696,0.0208,58292.0,58291.0,0.65782147]
[1726548150590,0.0208,58292.0,58291.0,0.29702147]
[1726548150792,0.0208,58292.0,58291.0,0.65782147]
[1726548152499,0.0208,58292.0,58291.0,0.76013453]
[1726548154105,0.0208,58292.0,58291.0,0.65782147]
[1726548154106,0.10657,58292.0,58291.0,0.65782147]
[1726548154407,0.10657,58292.0,58291.0,0.55782147]
[1726548155609,0.10657,58292.0,58291.0,0.19702147]
[1726548161811,0.10657,58292.0,58291.0,0.19708239]
[1726548162106,0.15164359,58292.0,58291.0,0.087772]
[1726548162307,0.27178554,58292.0,58291.0,0.087772]
[1726548165199,0.15164359,58292.0,58291.0,0.087772]
[1726548166807,0.15163142,58292.0,58291.0,0.087772]
[1726548169316,0.15163142,58292.0,58291.0,0.39936969]
[1726548169317,0.10657,58292.0,58291.0,0.39936969]
[1726548171215,0.10657,58292.0,58291.0,0.76016969]
[1726548171723,0.10657,58292.0,58291.0,0.76014612]
[1726548172019,0.10657,58292.0,58291.0,0.39934612]
[1726548172314,0.10657,58292.0,58291.0,0.76014612]
[1726548175215,0.10657,58292.0,58291.0,0.76012857]
[1726548176115,0.10657,58292.0,58291.0,0.39932857]
[1726548176315,0.10657,58292.0,58291.0,0.65783306]
[1726548177316,0.10657,58292.0,58291.0,0.548572]
[1726548177317,0.20405632,58292.0,58291.0,0.548572]
[1726548177620,0.20405632,58292.0,58291.0,0.448572]
[1726548179018,0.11828632,58292.0,58291.0,0.448572]
[1726548179219,0.11828985,58292.0,58291.0,0.548572]
[1726548179418,0.06591069,58292.0,58291.0,0.548572]
[1726548180726,0.06491069,58292.0,58291.0,0.548572]
[1726548181736,0.05291069,58292.0,58291.0,0.547572]
[1726548182025,0.06291069,58292.0,58291.0,0.548572]
[1726548184331,0.004,58298.0,58295.0,0.085765]
[1726548184526,0.085761,58299.0,58297.0,0.3616]
[1726548184722,0.085761,58299.0,58298.0,0.06892971]
[1726548184933,0.085761,58299.0,58298.0,0.06812971]
[1726548186635,0.096761,58299.0,58298.0,0.06912971]
[1726548186837,0.096761,58299.0,58298.0,0.07012971]
[1726548189434,0.096761,58299.0,58298.0,0.002]
[1726548192339,0.25089913,58299.0,58298.0,0.002]
[1726548192546,0.40914853,58299.0,58298.0,0.002]
[1726548194540,0.40917461,58299.0,58298.0,0.002]
[1726548199229,0.25089913,58299.0,58298.0,0.002]
[1726548199442,0.096761,58299.0,58298.0,0.002]
[1726548201638,0.096761,58299.0,58298.0,0.0530849]
[1726548204645,0.096761,58299.0,58298.0,0.1388459]
[1726548208348,0.096761,58299.0,58298.0,0.087761]
[1726548214655,0.25519631,58299.0,58298.0,0.087761]
[1726548218358,0.25519631,58299.0,58298.0,0.002]
[1726548219346,0.35519631,58299.0,58298.0,0.002]
[1726548220962,0.35519631,58299.0,58298.0,0.087761]
[1726548221353,0.196761,58299.0,58298.0,0.087761]
[1726548221863,0.096761,58299.0,58298.0,0.087761]
[1726548222966,0.096761,58299.0,58298.0,0.002]
[1726548223563,0.196761,58299.0,58298.0,0.002]
[1726548229364,0.43232081,58299.0,58298.0,0.002]
[1726548231658,0.33232081,58299.0,58298.0,0.002]
[1726548232564,0.95546512,58299.0,58298.0,0.002]
[1726548232764,1.12676143,58299.0,58298.0,0.002]
[1726548233166,1.12664324,58299.0,58298.0,0.002]
[1726548233363,0.94088224,58299.0,58298.0,0.002]
[1726548233665,0.25498593,58299.0,58298.0,0.002]
[1726548233873,0.40941441,58299.0,58298.0,0.002]
[1726548235166,0.40941441,58299.0,58298.0,0.087761]
[1726548235366,0.25498593,58299.0,58298.0,0.087761]
[1726548235872,0.24598593,58299.0,58298.0,0.087761]